bitfinex/quotes_SOLUSD_20240625
["timestamp","ask_amount","ask_price","bid_price","bid_amount"]
[1719306352329,20.0,134.28,134.24,9.34]
[1719306353402,20.0,134.28,134.23,9.34]
[1719306354903,100.0,134.27,134.23,9.34]
[1719306355708,100.0,134.27,134.19,37.36]
[1719306356000,100.0,134.27,134.23,9.34]
[1719306358264,100.0,134.27,134.24,9.34]
[1719306361686,7.750257,134.29,134.26,9.34]
[1719306361906,18.90399196,134.34,134.28,9.34]
[1719306362193,100.0,134.36,134.26,9.34]
[1719306362487,7.77453316,134.36,134.32,9.34]
[1719306362653,100.0,134.37,134.32,9.34]
[1719306362990,109.18746212,134.39,134.33,9.34]
[1719306363154,109.18746212,134.39,134.34,9.34]
[1719306363355,100.0,134.39,134.35,9.34]
[1719306365464,100.0,134.42,134.27,65.07]
[1719306365666,100.0,134.42,134.38,9.34]
[1719306365897,109.34,134.44,134.39,9.34]
[1719306366370,117.10473727,134.44,134.39,9.34]
[1719306367473,107.76473727,134.44,134.4,9.34]
[1719306367656,100.0,134.44,134.4,9.34]
[1719306368167,100.0,134.46,134.41,9.34]
[1719306368477,100.0,134.46,134.33,82.09]
[1719306368478,100.0,134.48,134.42,9.34]
[1719306368781,100.0,134.48,134.39,27.93]
[1719306369964,7.7690435,134.47,134.39,27.93]
[1719306370174,100.0,134.46,134.38,0.34]
[1719306370378,7.7690435,134.47,134.38,0.34]
[1719306370575,100.0,134.48,134.38,20.34]
[1719306371464,100.0,134.46,134.38,20.34]
[1719306371858,100.0,134.46,134.39,20.0]
[1719306372059,100.0,134.46,134.38,0.34]
[1719306372287,100.0,134.46,134.37,20.34]
[1719306373561,100.0,134.44,134.37,20.34]
[1719306374369,100.0,134.44,134.37,20.0]
[1719306374563,100.0,134.42,134.3,44.73]
[1719306374777,100.0,134.42,134.33,27.93]
[1719306374958,100.0,134.44,134.34,20.0]
[1719306375781,100.0,134.44,134.35,0.34]
[1719306376364,100.0,134.46,134.35,0.34]
[1719306376569,20.34,134.45,134.35,0.34]
[1719306377171,20.0,134.45,134.35,0.34]
[1719306377474,107.76334077,134.48,134.36,27.93]
[1719306377689,107.76334077,134.48,134.37,20.34]
[1719306377690,20.34,134.47,134.37,20.34]
[1719306378683,100.0,134.46,134.37,20.34]
[1719306380595,100.0,134.44,134.37,20.0]
[1719306380876,100.0,134.44,134.34,47.93]
[1719306381265,107.4382,134.44,134.34,47.93]
[1719306381466,100.0,134.42,134.34,27.93]
[1719306382277,100.0,134.42,134.32,27.93]
[1719306382478,100.0,134.42,134.29,50.57294085]
[1719306382871,100.0,134.42,134.31,27.93]
[1719306383082,100.0,134.42,134.32,20.0]
[1719306390301,27.78047339,134.43,134.34,27.93]
[1719306390480,100.0,134.46,134.35,20.34]
[1719306390673,107.75747765,134.46,134.35,20.34]
[1719306390883,20.0,134.45,134.35,20.34]
[1719306391999,107.75747765,134.46,134.35,20.34]
[1719306394794,100.0,134.44,134.35,20.34]
[1719306395176,107.75747765,134.46,134.35,0.34]
[1719306395380,20.0,134.45,134.35,0.34]
[1719306395983,100.0,134.43,134.35,0.34]
[1719306396183,100.0,134.43,134.35,0.17]
[1719306397585,100.0,134.43,134.35,0.34]
[1719306398291,100.0,134.43,134.34,20.0]
[1719306398495,7.4386,134.44,134.34,20.0]
[1719306398496,100.0,134.41,134.34,20.0]
[1719306398797,100.0,134.39,134.27,44.73]
[1719306399102,100.0,134.39,134.29,27.93]
[1719306399600,100.0,134.37,134.29,27.93]
[1719306400485,100.0,134.37,134.3,20.0]
[1719306401693,100.0,134.37,134.29,27.93]
[1719306403709,7.74007029,134.36,134.28,0.17]
[1719306403907,7.74007029,134.36,134.27,20.34]
[1719306404108,7.74007029,134.36,134.27,0.34]
[1719306404497,100.0,134.37,134.27,0.34]
[1719306404694,20.0,134.36,134.27,0.34]
[1719306404896,27.74711063,134.36,134.27,0.34]
[1719306405203,20.0,134.36,134.27,0.34]
[1719306405402,20.0,134.36,134.27,20.34]
[1719306406708,100.0,134.41,134.29,27.93]
[1719306406917,100.0,134.45,134.32,27.93]
[1719306406918,100.0,134.43,134.32,27.93]
[1719306407091,100.0,134.43,134.33,20.34]
[1719306407292,107.76473333,134.43,134.33,20.34]
[1719306407513,7.76473333,134.43,134.33,20.34]
[1719306407894,107.76473333,134.43,134.33,20.34]
[1719306408291,20.0,134.42,134.33,20.34]
[1719306409593,7.76473333,134.43,134.35,27.93]
[1719306410407,100.0,134.42,134.33,20.34]
[1719306410595,100.0,134.42,134.33,28.27]
[1719306410902,100.0,134.42,134.34,20.0]
[1719306411319,7.76473333,134.43,134.34,20.0]
[1719306411491,100.0,134.42,134.34,20.0]
[1719306412104,0.17,134.41,134.34,20.0]
[1719306412293,100.0,134.42,134.34,20.0]
[1719306415015,15.37393333,134.43,134.33,27.93]
[1719306415016,100.0,134.4,134.33,27.93]
[1719306415397,100.0,134.42,134.33,27.93]
[1719306418704,100.0,134.42,134.38,9.32]
[1719306418911,7.76473333,134.43,134.39,9.32]
[1719306419214,100.0,134.44,134.4,9.32]
[1719306419419,100.0,134.44,134.39,9.32]
[1719306420119,100.0,134.44,134.4,9.32]
[1719306421222,100.0,134.44,134.39,9.32]
[1719306422113,100.0,134.48,134.42,9.32]
[1719306422316,100.0,134.48,134.44,9.32]
[1719306423528,100.0,134.5,134.45,9.32]
[1719306423710,109.32,134.5,134.45,9.32]
[1719306424022,100.0,134.48,134.45,9.32]
[1719306424622,107.74170411,134.5,134.33,92.09]
[1719306424832,107.74170411,134.5,134.4,27.92]
[1719306425037,107.74170411,134.5,134.41,20.34]
[1719306425318,100.0,134.5,134.41,20.34]
[1719306426137,107.75070303,134.5,134.41,20.34]
[1719306426329,100.0,134.5,134.41,20.34]
[1719306426706,100.0,134.5,134.41,20.0]
[1719306426952,7.75214287,134.49,134.41,20.0]
[1719306427329,100.0,134.48,134.41,20.0]
[1719306431226,100.0,134.48,134.4,0.34]
[1719306431418,100.0,134.48,134.4,20.34]
[1719306431616,100.0,134.46,134.4,20.0]
[1719306431814,100.0,134.46,134.36,27.92]
[1719306432024,100.0,134.46,134.37,20.0]
[1719306438227,107.75041006,134.48,134.37,20.0]
[1719306438431,107.75041006,134.48,134.38,0.34]
[1719306439339,100.0,134.46,134.38,0.17]
[1719306439533,100.0,134.44,134.37,20.0]
[1719306439937,100.0,134.44,134.36,0.17]
[1719306440316,100.0,134.44,134.35,0.17]
[1719306440517,100.0,134.42,134.34,20.0]
[1719306440916,100.0,134.44,134.33,33.73139269]
[1719306441843,100.0,134.44,134.34,0.17]
[1719306442017,100.0,134.46,134.34,0.34]
[1719306442219,0.17,134.47,134.37,27.92]
[1719306442414,20.34,134.47,134.38,20.0]
[1719306443144,20.0,134.47,134.38,20.0]
[1719306445246,100.0,134.45,134.38,20.0]
[1719306445426,100.0,134.45,134.37,27.92]
[1719306445625,100.0,134.45,134.38,0.17]
[1719306446339,100.0,134.45,134.37,27.92]
[1719306446725,100.0,134.45,134.4,9.31]
[1719306448745,100.0,134.45,134.36,0.34]
[1719306448945,100.0,134.45,134.36,20.34]
[1719306451441,100.0,134.4,134.31,6.70531015]
[1719306451651,100.0,134.4,134.3,27.94]
[1719306451848,100.0,134.4,134.31,20.0]
[1719306452731,100.0,134.42,134.3,27.94]
[1719306452961,0.34,134.43,134.33,27.94]
[1719306453135,100.0,134.42,134.33,27.94]
[1719306455430,0.17,134.41,134.33,27.94]
[1719306455664,0.34,134.41,134.33,27.94]
[1719306460542,7.77962488,134.44,134.33,27.94]
[1719306460853,20.0,134.43,134.34,20.34]
[1719306461350,7.77962488,134.44,134.34,20.34]
[1719306461975,100.0,134.43,134.34,20.34]
[1719306463134,100.0,134.43,134.34,0.34]
[1719306463362,100.0,134.43,134.34,20.34]
[1719306463654,100.0,134.41,134.34,20.0]
[1719306463862,100.0,134.41,134.31,47.94]
[1719306464034,100.0,134.41,134.32,0.34]
[1719306467760,100.0,134.41,134.31,47.94]
[1719306467965,100.0,134.39,134.31,47.94]
[1719306468742,100.0,134.39,134.34,9.32]
[1719306470862,100.0,134.39,134.35,9.32]
[1719306471647,109.32,134.39,134.31,20.0]
[1719306471844,109.32,134.39,134.26,82.01]
[1719306471845,109.32,134.39,134.33,9.32]
[1719306472244,9.32,134.38,134.33,9.32]
[1719306472566,117.07444336,134.39,134.33,9.32]
[1719306472947,117.07444336,134.39,134.27,20.0]
[1719306473148,117.07444336,134.39,134.33,9.32]
[1719306475963,7.75444336,134.39,134.35,9.32]
[1719306476186,9.32,134.4,134.35,9.32]
[1719306476663,100.0,134.41,134.36,9.32]
[1719306476664,117.07305973,134.41,134.36,9.32]
[1719306477552,107.75305973,134.41,134.36,9.32]
[1719306477767,117.07305973,134.41,134.36,9.32]
[1719306481471,100.0,134.37,134.34,9.32]
[1719306481963,100.0,134.37,134.33,9.32]
[1719306482561,100.0,134.37,134.27,25.90296232]
[1719306482762,100.0,134.37,134.33,9.32]
[1719306482951,109.32,134.37,134.32,9.32]
[1719306483160,100.0,134.35,134.24,6.70531015]
[1719306483380,100.0,134.35,134.23,44.73]
[1719306483381,100.0,134.35,134.3,9.32]
[1719306484562,109.32,134.33,134.23,6.01571275]
[1719306484770,109.32,134.33,134.28,9.32]
[1719306485754,109.32,134.33,134.2,6.70531015]
[1719306485954,109.32,134.31,134.17,44.73]
[1719306486158,109.32,134.31,134.25,9.32]
[1719306486159,9.32,134.3,134.25,9.32]
[1719306486762,117.08555525,134.31,134.26,9.32]
[1719306488268,100.0,134.33,134.27,9.32]
[1719306488460,9.32,134.32,134.27,9.32]
[1719306488666,107.76548491,134.33,134.27,9.32]
[1719306488871,107.76548491,134.33,134.28,9.32]
[1719306489061,109.32,134.33,134.28,9.32]
[1719306489262,7.76534806,134.32,134.28,9.32]
[1719306489507,7.76534806,134.32,134.27,9.32]
[1719306489768,9.32,134.32,134.27,9.32]
[1719306489968,7.76486492,134.32,134.27,9.32]
[1719306490148,17.08486492,134.32,134.27,9.32]
[1719306490354,17.08486492,134.32,134.19,82.01]
[1719306490549,7.76486492,134.32,134.27,9.32]
[1719306490757,17.08486492,134.32,134.27,9.32]
[1719306490975,9.32,134.32,134.27,9.32]
[1719306491450,117.08545599,134.33,134.28,9.32]
[1719306491655,107.76545599,134.33,134.28,9.32]
[1719306491855,117.08545599,134.33,134.28,9.32]
[1719306493986,100.0,134.3,134.17,35.73355312]
[1719306494183,9.32,134.29,134.19,37.28]
[1719306494353,9.32,134.29,134.24,9.32]
[1719306494565,109.32,134.28,134.23,9.32]
[1719306495050,100.0,134.28,134.23,9.32]
[1719306495467,109.32,134.28,134.23,9.32]
[1719306496275,100.0,134.28,134.23,9.32]
[1719306497159,100.0,134.28,134.24,9.32]
[1719306497361,109.32,134.3,134.25,9.32]
[1719306497870,100.0,134.3,134.2,20.0]
[1719306498076,100.0,134.32,134.21,0.34]
[1719306498588,7.76545599,134.33,134.28,9.32]
[1719306498758,17.08545599,134.33,134.28,9.32]
[1719306498962,7.76545599,134.33,134.21,0.34]
[1719306499162,7.76545599,134.33,134.29,9.32]
[1719306500775,7.76545599,134.33,134.24,27.99]
[1719306500955,7.76545599,134.33,134.25,0.34]
[1719306502378,100.0,134.31,134.25,0.17]
[1719306502587,100.0,134.31,134.24,27.99]
[1719306503399,107.7696606,134.31,134.24,27.99]
[1719306503586,100.0,134.31,134.24,27.99]
[1719306503884,107.76947628,134.31,134.24,27.99]
[1719306504279,100.0,134.31,134.24,27.99]
[1719306504479,100.0,134.29,134.2,27.99]
[1719306504659,100.0,134.29,134.21,20.0]
[1719306505715,100.0,134.29,134.22,0.17]
[1719306505870,100.0,134.29,134.22,0.34]
[1719306510293,100.0,134.29,134.21,20.0]
[1719306510490,100.0,134.29,134.19,27.99]
[1719306510704,100.0,134.29,134.2,20.34]
[1719306511561,0.17,134.28,134.2,20.0]
[1719306511784,100.0,134.29,134.2,20.0]
[1719306514992,107.7718278,134.29,134.2,20.0]
[1719306515970,107.7718278,134.29,134.2,47.99]
[1719306516186,100.0,134.29,134.2,47.99]
[1719306516688,100.0,134.29,134.21,0.34]
[1719306519576,100.0,134.29,134.21,28.33]
[1719306519895,100.0,134.31,134.22,20.0]
[1719306520493,107.77786801,134.31,134.22,20.0]
[1719306520681,107.77786801,134.31,134.26,9.33]
[1719306521579,117.10786801,134.31,134.26,9.33]
[1719306522481,107.77786801,134.31,134.26,9.33]
[1719306522872,7.77786801,134.31,134.29,9.33]
[1719306523093,100.0,134.34,134.29,9.33]
[1719306523277,107.78228101,134.34,134.29,9.33]
[1719306523593,117.11228101,134.34,134.29,9.33]
[1719306523896,100.0,134.32,134.29,9.33]
[1719306524187,100.0,134.32,134.28,9.33]
[1719306524980,100.0,134.3,134.27,9.33]
[1719306525491,100.0,134.3,134.28,9.33]
[1719306525895,109.33,134.33,134.28,9.33]
[1719306526298,100.0,134.31,134.22,20.0]
[1719306526478,100.0,134.31,134.27,9.33]
[1719306526677,100.0,134.31,134.21,0.17]
[1719306526873,100.0,134.31,134.27,9.33]
[1719306527578,109.33,134.29,134.2,20.0]
[1719306527776,20.34,134.3,134.18,20.0]
[1719306527777,100.0,134.27,134.18,20.0]
[1719306527976,100.0,134.27,134.22,9.33]
[1719306529007,100.0,134.27,134.17,20.0]
[1719306529178,100.0,134.27,134.22,9.33]
[1719306529380,0.17,134.26,134.16,20.0]
[1719306529686,100.0,134.27,134.23,9.33]
[1719306530832,100.0,134.27,134.22,9.33]
[1719306531135,100.0,134.27,134.23,9.33]
[1719306533599,107.78416042,134.27,134.23,9.33]
[1719306533902,0.17,134.26,134.22,9.33]
[1719306534105,107.78416042,134.27,134.22,9.33]
[1719306535490,107.78416042,134.27,134.16,5.92487324]
[1719306535688,107.78416042,134.27,134.15,20.0]
[1719306535689,0.17,134.26,134.21,9.33]
[1719306535993,0.34,134.26,134.21,9.33]
[1719306536232,117.11416042,134.27,134.21,9.33]
[1719306536417,107.78416042,134.27,134.22,9.33]
[1719306537098,7.78416042,134.27,134.19,9.33]
[1719306537299,7.78416042,134.27,134.24,9.33]
[1719306537506,100.0,134.29,134.24,9.33]
[1719306537695,7.78400689,134.28,134.24,9.33]
[1719306537895,20.0,134.27,134.24,9.33]
[1719306538798,7.78400689,134.28,134.24,9.33]
[1719306541311,100.0,134.27,134.24,9.33]
[1719306541511,100.0,134.27,134.23,9.33]
[1719306542295,100.0,134.25,134.17,0.17]
[1719306542519,100.0,134.25,134.22,9.33]
[1719306542814,100.0,134.25,134.21,9.33]
[1719306543207,100.0,134.27,134.16,0.17]
[1719306543506,100.0,134.27,134.23,9.33]
[1719306543691,0.17,134.26,134.19,37.32]
[1719306543894,0.34,134.26,134.19,37.32]
[1719306546834,0.34,134.26,134.22,9.33]
[1719306548506,8.12617137,134.26,134.22,9.33]
[1719306549826,7.78617137,134.26,134.22,9.33]
[1719306550025,7.78617137,134.26,134.23,9.33]
[1719306550813,7.78617137,134.26,134.24,9.33]
[1719306552418,7.78617137,134.26,134.25,9.33]
[1719306552610,100.0,134.29,134.25,9.33]
[1719306552813,100.0,134.29,134.19,37.32]
[1719306552814,107.78633522,134.29,134.24,9.33]
[1719306553031,117.11633522,134.29,134.24,9.33]
[1719306553332,124.56283522,134.29,134.24,9.33]
[1719306553631,0.17,134.28,134.24,9.33]
[1719306554330,7.78633522,134.29,134.25,9.33]
[1719306554628,0.34,134.3,134.25,9.33]
[1719306554925,0.17,134.29,134.25,9.33]
[1719306555145,0.34,134.29,134.25,9.33]
[1719306555819,27.78587872,134.3,134.25,9.33]
[1719306556020,37.11587872,134.3,134.25,9.33]
[1719306556207,27.78587872,134.3,134.25,9.33]
[1719306556402,37.11587872,134.3,134.25,9.33]
[1719306556735,37.11587872,134.3,134.24,9.33]
[1719306557214,100.34,134.29,134.24,9.33]
[1719306558028,100.0,134.27,134.23,9.33]
[1719306558272,100.0,134.27,134.15,26.07619537]
[1719306558273,100.0,134.27,134.2,20.0]
[1719306558447,100.0,134.27,134.22,9.33]
[1719306559233,100.0,134.27,134.23,9.33]
[1719306559535,100.34,134.29,134.23,9.33]
[1719306559842,100.0,134.27,134.23,9.33]
[1719306560837,100.0,134.27,134.22,9.33]
[1719306561347,100.0,134.27,134.23,9.33]
[1719306565631,107.7856554,134.27,134.23,9.33]
[1719306566554,107.7856554,134.27,134.21,21.1888]
[1719306566555,117.1156554,134.27,134.21,21.1888]
[1719306566835,0.34,134.26,134.22,9.33]
[1719306567433,117.1156554,134.27,134.22,9.33]
[1719306567742,0.17,134.26,134.22,9.33]
[1719306568041,117.1156554,134.27,134.22,9.33]
[1719306568243,107.7856554,134.27,134.23,9.33]
[1719306568434,7.7856554,134.27,134.24,9.33]
[1719306570762,20.0,134.28,134.24,9.33]
[1719306570934,20.0,134.29,134.25,9.33]
[1719306571178,27.78505319,134.29,134.25,9.33]
[1719306571530,27.78505319,134.29,134.24,9.33]
[1719306572327,27.78505319,134.29,134.24,25.251]
[1719306577973,107.4452,134.32,134.28,9.33]
[1719306578149,100.0,134.32,134.28,9.33]
[1719306578335,109.33,134.33,134.29,9.33]
[1719306578336,7.7824619,134.31,134.29,9.33]
[1719306578656,7.4444,134.33,134.29,9.33]
[1719306579040,15.22652401,134.33,134.29,9.33]
[1719306579241,7.78212401,134.33,134.29,9.33]
[1719306579449,20.0,134.32,134.3,9.33]
[1719306579648,20.0,134.32,134.29,9.33]
[1719306581038,7.95212401,134.33,134.29,9.33]
[1719306582654,7.78212401,134.33,134.29,9.33]
[1719306583439,7.78212401,134.33,134.3,9.33]
[1719306583634,7.78212401,134.33,134.31,9.33]
[1719306583844,7.78212401,134.33,134.32,9.33]
[1719306584030,23.2368,134.35,134.32,9.33]
[1719306584235,15.7935,134.35,134.32,9.33]
[1719306584756,15.7935,134.35,134.33,9.33]
[1719306585457,15.7935,134.35,134.34,9.33]
[1719306591864,15.7935,134.35,134.27,15.498]
[1719306592058,15.7935,134.35,134.34,9.33]
[1719306592439,15.7935,134.35,134.27,21.35154606]
[1719306592659,15.7935,134.35,134.33,9.33]
[1719306595365,15.7935,134.35,134.27,21.35154606]
[1719306595577,15.7935,134.35,134.32,9.33]
[1719306597365,15.7935,134.35,134.33,9.33]
[1719306597549,9.33,134.39,134.35,6.2265]
[1719306597747,20.17,134.38,134.35,6.2265]
[1719306598144,20.0,134.38,134.35,15.5565]
[1719306598343,20.0,134.4,134.36,25.1827]
[1719306599170,29.33,134.41,134.36,25.1827]
[1719306599668,0.34,134.4,134.36,25.1827]
[1719306599966,20.0,134.41,134.36,25.1827]
[1719306600468,29.33,134.41,134.36,25.1827]
[1719306601155,20.0,134.41,134.36,25.1827]
[1719306601370,20.0,134.41,134.36,15.8527]
[1719306602567,100.0,134.4,134.36,15.8527]
[1719306602758,9.5,134.39,134.36,15.8527]
[1719306603156,0.17,134.39,134.36,15.8527]
[1719306603357,109.5,134.4,134.36,15.8527]
[1719306603554,109.33,134.4,134.36,15.8527]
[1719306603777,20.17,134.41,134.36,25.1827]
[1719306603973,20.17,134.41,134.37,9.33]
[1719306605359,17.11317619,134.42,134.37,9.33]
[1719306605661,9.33,134.46,134.41,9.33]
[1719306605873,29.33,134.46,134.39,16.4632]
[1719306606051,27.78017721,134.46,134.41,9.33]
[1719306607763,127.78017721,134.46,134.41,9.33]
[1719306608758,135.21747721,134.46,134.39,16.4632]
[1719306608956,100.0,134.44,134.4,9.33]
[1719306611775,0.34,134.45,134.41,9.33]
[1719306612966,0.34,134.45,134.39,16.4632]
[1719306613566,0.34,134.45,134.41,9.33]
[1719306613772,0.17,134.45,134.41,9.33]
[1719306614078,127.78017721,134.46,134.41,9.33]
[1719306614284,137.11017721,134.46,134.41,9.33]
[1719306615675,127.78017721,134.46,134.42,9.33]
[1719306616063,7.78017721,134.46,134.44,9.33]
[1719306616259,100.0,134.48,134.44,9.33]
[1719306618375,100.0,134.48,134.45,24.5348]
[1719306618765,100.0,134.5,134.47,9.33]
[1719306622064,100.0,134.48,134.43,6.1975]
[1719306622281,100.0,134.48,134.44,9.33]
[1719306622574,100.0,134.48,134.43,6.1975]
[1719306622774,100.0,134.48,134.43,15.5275]
[1719306622979,100.0,134.48,134.41,15.6816]
[1719306622980,100.0,134.46,134.41,15.6816]
[1719306623185,100.0,134.46,134.41,25.0116]
[1719306624561,100.0,134.46,134.41,15.6816]
[1719306624763,109.33,134.46,134.41,25.0116]
[1719306625782,100.0,134.44,134.41,15.6816]
[1719306627781,109.33,134.46,134.41,25.0116]
[1719306627982,0.34,134.45,134.41,25.0116]
[1719306628489,0.34,134.45,134.42,9.33]
[1719306628490,0.17,134.45,134.42,9.33]
[1719306628781,9.33,134.47,134.42,9.33]
[1719306628782,20.34,134.46,134.42,9.33]
[1719306629384,0.34,134.46,134.42,9.33]
[1719306629964,20.0,134.47,134.42,9.33]
[1719306631577,0.17,134.46,134.42,9.33]
[1719306631870,20.0,134.47,134.42,9.33]
[1719306632399,109.67,134.48,134.43,9.33]
[1719306632580,0.34,134.47,134.43,9.33]
[1719306634074,0.34,134.47,134.41,15.6816]
[1719306634378,0.34,134.47,134.43,9.33]
[1719306635372,0.34,134.47,134.41,15.6816]
[1719306635373,100.0,134.46,134.41,15.6816]
[1719306635572,100.0,134.46,134.42,9.33]
[1719306638677,0.34,134.47,134.42,9.33]
[1719306638876,0.34,134.47,134.43,9.33]
[1719306640199,0.34,134.47,134.42,9.33]
[1719306640575,0.34,134.47,134.43,9.33]
[1719306640774,0.17,134.47,134.43,9.33]
[1719306640999,117.10889214,134.48,134.43,9.33]
[1719306642275,0.17,134.47,134.42,9.33]
[1719306642470,0.34,134.47,134.42,9.33]
[1719306644480,9.67,134.47,134.42,9.33]
[1719306645199,9.67,134.47,134.41,15.6816]
[1719306645396,9.67,134.47,134.42,9.33]
[1719306645598,9.67,134.47,134.41,15.6816]
[1719306645785,9.67,134.47,134.42,9.33]
[1719306646102,9.67,134.47,134.41,15.6816]
[1719306646309,9.67,134.47,134.42,9.33]
[1719306648606,9.67,134.47,134.41,15.6816]
[1719306648835,0.34,134.47,134.42,9.33]
[1719306649699,0.34,134.47,134.41,15.6816]
[1719306649876,0.34,134.47,134.42,9.33]
[1719306650380,100.0,134.46,134.39,6.2754]
[1719306650581,0.34,134.45,134.4,9.33]
[1719306650989,9.67,134.45,134.39,6.2754]
[1719306651196,0.34,134.45,134.4,9.33]
[1719306651598,9.67,134.45,134.39,6.2754]
[1719306651813,9.67,134.45,134.4,9.33]
[1719306652298,9.67,134.45,134.39,6.2754]
[1719306652602,9.67,134.45,134.4,9.33]
[1719306653313,9.67,134.45,134.39,6.2754]
[1719306653504,9.67,134.45,134.4,9.33]
[1719306656608,9.67,134.45,134.37,16.05]
[1719306656909,9.67,134.45,134.4,9.33]
[1719306657114,100.0,134.43,134.33,21.9584]
[1719306657419,9.33,134.41,134.36,9.33]
[1719306658208,109.33,134.41,134.33,21.9584]
[1719306658807,109.33,134.41,134.35,9.33]
[1719306659007,9.33,134.41,134.35,9.33]
[1719306659305,9.33,134.41,134.36,9.33]
[1719306660208,100.0,134.4,134.33,21.9584]
[1719306660407,109.33,134.4,134.33,15.5295]
[1719306660612,100.0,134.38,134.3,22.5878]
[1719306660822,109.33,134.38,134.3,22.5878]
[1719306660992,100.0,134.36,134.31,9.33]
[1719306661334,100.0,134.36,134.3,16.443]
[1719306661609,9.5,134.35,134.3,9.33]
[1719306661806,0.17,134.35,134.3,9.33]
[1719306662321,100.0,134.34,134.27,15.5876]
[1719306662607,100.0,134.34,134.29,9.33]
[1719306662815,100.0,134.34,134.3,9.33]
[1719306663194,0.17,134.35,134.31,9.33]
[1719306663414,7.78576958,134.36,134.33,9.33]
[1719306663726,6.2141,134.37,134.33,9.33]
[1719306663727,6.3841,134.37,134.33,9.33]
[1719306664010,20.34,134.36,134.32,9.33]
[1719306664394,20.17,134.36,134.32,9.33]
[1719306664596,20.17,134.36,134.33,9.33]
[1719306664797,20.0,134.36,134.32,9.33]
[1719306665009,20.0,134.36,134.27,15.5876]
[1719306665212,20.0,134.36,134.28,0.17]
[1719306665394,20.0,134.36,134.32,9.33]
[1719306666299,20.0,134.36,134.33,9.33]
[1719306666818,7.7849724,134.38,134.33,9.33]
[1719306667004,20.0,134.37,134.33,9.33]
[1719306667196,20.0,134.37,134.28,0.17]
[1719306667394,20.0,134.37,134.33,9.33]
[1719306668023,7.7849724,134.38,134.34,9.33]
[1719306668401,17.1149724,134.38,134.33,9.33]
[1719306669123,17.1149724,134.38,134.32,9.33]
[1719306669124,100.17,134.37,134.32,9.33]
[1719306669824,109.5,134.37,134.32,9.33]